bitfinex/quotes_BTCUSD_20251024
["timestamp","ask_amount","ask_price","bid_price","bid_amount"]
[1761308893310,0.18027762,110940.0,110930.0,0.27111288]
[1761308893534,0.18027762,110940.0,110930.0,0.09081901]
[1761308893827,1.01295605,110940.0,110930.0,0.001]
[1761308894009,1.51115054,110940.0,110930.0,0.004]
[1761308894217,1.53542583,110940.0,110930.0,0.004]
[1761308894415,1.53821471,110940.0,110930.0,0.004]
[1761308894790,1.5866692,110940.0,110930.0,0.001]
[1761308894994,0.18032639,110910.0,110900.0,0.00024849]
[1761308895199,0.64849307,110910.0,110900.0,0.00024849]
[1761308895372,0.64849307,110910.0,110900.0,0.18059114]
[1761308897009,0.95737975,110910.0,110900.0,0.00024849]
[1761308897228,0.64849307,110910.0,110900.0,0.18259114]
[1761308897450,0.33960639,110910.0,110900.0,0.18429194]
[1761308897688,0.64849307,110910.0,110900.0,0.18429194]
[1761308897902,0.64849307,110910.0,110900.0,0.00394929]
[1761308898140,0.64849307,110910.0,110900.0,0.18429194]
[1761308898372,0.64849307,110910.0,110900.0,0.00394929]
[1761308900115,0.33960639,110910.0,110900.0,0.00394929]
[1761308900336,0.64849307,110910.0,110900.0,0.18429194]
[1761308901501,0.48921307,110910.0,110900.0,0.18429194]
[1761308901690,0.64849307,110910.0,110900.0,0.2216788]
[1761308902032,0.48921307,110910.0,110900.0,0.2216788]
[1761308903302,0.48921307,110910.0,110900.0,0.18429194]
[1761308903928,0.18032639,110910.0,110900.0,0.18429194]
[1761308904461,0.19546228,110920.0,110910.0,2.0]
[1761308904674,0.09053635,110960.0,110930.0,0.18930856]
[1761308904902,0.33954137,110950.0,110940.0,0.18027762]
[1761308905134,0.09053635,110960.0,110950.0,0.18026137]
[1761308905387,0.24981635,110960.0,110940.0,0.18027762]
[1761308905630,0.24981635,110960.0,110950.0,0.01802613]
[1761308906071,0.25030218,110960.0,110950.0,0.01802613]
[1761308906298,0.18026137,110950.0,110940.0,0.18027762]
[1761308906554,0.25030218,110960.0,110940.0,0.30805525]
[1761308906781,0.25030218,110960.0,110940.0,0.12777763]
[1761308906782,0.18026137,110950.0,110940.0,0.12777763]
[1761308907040,0.18027762,110940.0,110930.0,0.18529387]
[1761308907273,0.18027762,110940.0,110910.0,0.18032639]
[1761308907274,0.18030812,110930.0,110910.0,0.18032639]
[1761308907477,0.18030812,110930.0,110920.0,0.18031013]
[1761308907704,0.1892915,110940.0,110920.0,0.04504555]
[1761308907927,0.33957387,110930.0,110920.0,0.01803101]
[1761308908152,0.33957387,110930.0,110920.0,0.19834114]
[1761308908367,0.33957387,110930.0,110920.0,0.18031013]
[1761308909367,0.18029387,110930.0,110920.0,0.18131013]
[1761308909490,0.33957387,110930.0,110920.0,0.18131013]
[1761308909867,0.18029387,110930.0,110920.0,0.18331013]
[1761308910073,0.15928,110930.0,110920.0,0.18331013]
[1761308910442,0.18027762,110940.0,110930.0,0.18029387]
[1761308910642,0.33955762,110940.0,110930.0,0.18029387]
[1761308910843,0.18927443,110950.0,110930.0,0.27011288]
[1761308911050,0.09102218,110960.0,110940.0,0.19830538]
[1761308911251,0.33954137,110950.0,110940.0,0.21555537]
[1761308912343,0.33958137,110950.0,110940.0,0.21555537]
[1761308913224,0.14478652,110950.0,110940.0,0.21555537]
[1761308913437,0.32504789,110950.0,110940.0,0.03527775]
[1761308913658,0.33954137,110950.0,110940.0,0.03527775]
[1761308913875,0.18026137,110950.0,110940.0,0.03527775]
[1761308914083,0.18026137,110950.0,110940.0,0.21555537]
[1761308914521,0.33954137,110950.0,110940.0,0.21555537]
[1761308914722,0.18026137,110950.0,110940.0,0.03527775]
[1761308914834,0.33954137,110950.0,110940.0,0.03527775]
[1761308915045,0.18026137,110950.0,110940.0,0.03527775]
[1761308915467,0.33950137,110950.0,110940.0,0.03527775]
[1761308915953,0.33950137,110950.0,110940.0,0.21555537]
[1761308916159,0.18026137,110950.0,110940.0,0.21555537]
[1761308916366,0.33950137,110950.0,110940.0,0.21555537]
[1761308916566,0.18026137,110950.0,110940.0,0.21655537]
[1761308916782,0.33950137,110950.0,110940.0,0.21655537]
[1761308917207,0.18026137,110950.0,110940.0,0.21655537]
[1761308917410,0.00048583,110960.0,110950.0,0.18026137]
[1761308917616,0.15972583,110960.0,110950.0,0.31542593]
[1761308917828,0.20724651,110990.0,110970.0,0.18021491]
[1761308918047,0.15936,110980.0,110970.0,0.28470189]
[1761308918253,0.33957265,110980.0,110950.0,0.67962137]
[1761308918457,0.18022889,110970.0,110950.0,0.18026137]
[1761308918862,0.18022889,110970.0,110960.0,0.18024513]
[1761308919073,0.18022889,110970.0,110960.0,0.1802436]
[1761308919518,0.18022889,110970.0,110950.0,0.18026137]
[1761308919771,0.18022889,110970.0,110960.0,0.18024513]
[1761308920426,0.18022889,110970.0,110960.0,0.18224513]
[1761308920650,0.18022889,110970.0,110960.0,0.18124513]
[1761308920841,0.18022889,110970.0,110960.0,0.18224513]
[1761308921471,0.34858328,110980.0,110960.0,0.18224513]
[1761308921695,0.18922328,110980.0,110960.0,0.31729669]
[1761308921926,0.33958889,110970.0,110960.0,0.31629669]
[1761308922150,0.33958889,110970.0,110960.0,0.13605156]
[1761308922821,0.33958889,110970.0,110960.0,0.31529669]
[1761308923027,0.33958889,110970.0,110960.0,0.31629669]
[1761308923245,0.33958889,110970.0,110960.0,0.31529669]
[1761308923531,0.04519291,110980.0,110970.0,0.18022889]
[1761308923750,0.37575493,110980.0,110970.0,0.01476699]
[1761308923970,0.21639493,110980.0,110970.0,0.01476699]
[1761308924192,0.37575493,110980.0,110970.0,0.01476699]
[1761308924406,0.21639493,110980.0,110970.0,0.01476699]
[1761308924625,0.37575493,110980.0,110970.0,0.01476699]
[1761308925956,0.21641117,110970.0,110960.0,0.001]
[1761308926644,0.21641117,110970.0,110960.0,0.18124513]
[1761308926866,0.18026137,110950.0,110940.0,0.00034003]
[1761308927097,0.37580365,110950.0,110940.0,0.00034003]
[1761308928012,0.37580365,110950.0,110940.0,0.00082586]
[1761308929514,0.37580365,110950.0,110940.0,0.00382586]
[1761308929940,0.37580365,110950.0,110940.0,0.00282586]
[1761308930995,0.37580365,110950.0,110940.0,0.00082586]
[1761308931209,0.37580365,110950.0,110940.0,0.00182586]
[1761308931417,0.21644365,110950.0,110940.0,0.00182586]
[1761308931620,0.21644365,110950.0,110940.0,0.00082586]
[1761308931839,0.37584365,110950.0,110940.0,0.00082586]
[1761308932050,0.37584365,110950.0,110940.0,0.00182586]
[1761308938997,0.21644365,110950.0,110940.0,0.00182586]
[1761308939199,0.37588365,110950.0,110940.0,0.00182586]
[1761308944662,0.18026137,110950.0,110940.0,0.18210348]
[1761308944888,0.18924033,110970.0,110950.0,0.18026137]
[1761308945098,0.18924033,110970.0,110960.0,0.18024513]
[1761308945344,0.18924033,110970.0,110960.0,0.03605065]
[1761308945525,0.22542261,110970.0,110960.0,0.03605065]
[1761308945732,0.18924033,110970.0,110960.0,0.21629578]
[1761308946560,0.22542261,110970.0,110960.0,0.21729578]
[1761308946972,0.21641117,110970.0,110960.0,0.21729578]
[1761308947786,0.18922328,110980.0,110960.0,0.37569578]
[1761308947985,0.18022889,110970.0,110960.0,0.37569578]
[1761308948322,0.18022889,110970.0,110960.0,0.37669578]
[1761308948899,0.18022889,110970.0,110960.0,0.19645065]
[1761308949241,0.18022889,110970.0,110960.0,0.37669578]
[1761308949764,0.18022889,110970.0,110960.0,0.19645065]
[1761308949968,0.18022889,110970.0,110960.0,0.37669578]
[1761308952330,0.18022889,110970.0,110960.0,0.19645065]
[1761308952727,0.18022889,110970.0,110960.0,0.37669578]
[1761308956260,0.18922328,110980.0,110960.0,0.37669578]
[1761308957168,0.18922328,110980.0,110970.0,0.01802288]
[1761308957399,0.18922328,110980.0,110970.0,0.22220066]
[1761308957643,0.18922328,110980.0,110970.0,0.20417778]
[1761308958805,0.189207,110990.0,110970.0,0.20417778]
[1761308959047,0.189207,110990.0,110980.0,0.1594]
[1761308959048,0.22538928,110990.0,110980.0,0.1594]
[1761308959278,0.18929564,111000.0,110980.0,0.35763391]
[1761308959483,0.18019641,110990.0,110980.0,0.3756633]
[1761308959707,0.18929564,111000.0,110980.0,0.3756633]
[1761308959934,0.18019641,110990.0,110980.0,0.3756633]
[1761308960297,4.857e-05,110990.0,110980.0,0.3756633]
[1761308961026,4.857e-05,110990.0,110980.0,0.3766633]
[1761308961247,4.857e-05,110990.0,110980.0,0.3786633]
[1761308961485,4.857e-05,110990.0,110980.0,0.3776633]
[1761308961860,0.18024498,110990.0,110980.0,0.3776633]
[1761308962039,4.857e-05,110990.0,110980.0,0.3776633]
[1761308962480,4.857e-05,110990.0,110980.0,0.46748231]
[1761308962841,4.857e-05,110990.0,110980.0,2.46748231]
[1761308963613,4.857e-05,110990.0,110980.0,2.46848231]
[1761308964436,4.857e-05,110990.0,110980.0,2.49353207]
[1761308966624,4.857e-05,110990.0,110980.0,0.30908231]
[1761308966826,4.857e-05,110990.0,110980.0,0.46848231]
[1761308969672,0.18024498,110990.0,110980.0,0.46848231]
[1761308969879,4.857e-05,110990.0,110980.0,0.46848231]
[1761308971664,4.857e-05,110990.0,110980.0,2.66848231]
[1761308971944,4.857e-05,110990.0,110980.0,2.69353207]
[1761308972611,4.857e-05,110990.0,110980.0,2.46848231]
[1761308973260,4.857e-05,110990.0,110980.0,2.28826966]
[1761308977342,0.00032341,110990.0,110980.0,2.28826966]
[1761308979020,0.00032341,110990.0,110980.0,0.12886966]
[1761308979250,0.00032341,110990.0,110980.0,0.25209901]
[1761308985959,0.00032341,110990.0,110980.0,0.45209901]
[1761308986162,0.00032341,110990.0,110980.0,0.25209901]
[1761308988068,0.00032341,110990.0,110980.0,0.09281901]
[1761308988284,0.00032341,110990.0,110980.0,0.1624]
[1761308988498,0.00032341,110990.0,110980.0,0.18044229]
[1761308988716,0.00032341,110990.0,110980.0,0.19846355]
[1761308988924,0.00032341,110990.0,110980.0,0.18044229]
[1761308989106,0.00032341,110990.0,110980.0,0.17844229]
[1761308989311,0.00032341,110990.0,110980.0,0.17744229]
[1761308989716,0.00032341,110990.0,110980.0,0.17844229]
[1761308990072,0.00032341,110990.0,110980.0,0.2672613]
[1761308990486,0.00032341,110990.0,110980.0,0.2702613]
[1761308991208,0.00032341,110990.0,110980.0,0.2692613]
[1761308991371,0.00032341,110990.0,110980.0,0.2682613]
[1761308991816,0.00032341,110990.0,110980.0,0.2702613]
[1761308992018,0.00032341,110990.0,110980.0,0.2682613]
[1761308992291,0.00032341,110990.0,110980.0,0.1088613]
[1761308992443,0.00032341,110990.0,110980.0,0.1108613]
[1761308992818,0.00032341,110990.0,110980.0,0.1260591]
[1761308993075,0.00032341,110990.0,110980.0,0.10801681]
[1761308993276,0.00032341,110990.0,110980.0,0.09281901]
[1761308994455,0.34,111030.0,111000.0,0.00999999]
[1761308994656,0.42986759,111030.0,111000.0,0.00999999]
[1761308995070,0.00900819,111010.0,111000.0,0.00999999]
[1761308996263,0.00900738,111020.0,111010.0,0.00999999]
[1761308996475,0.00900738,111020.0,111010.0,0.05396228]
[1761308996660,0.00900738,111020.0,111010.0,0.00999999]
[1761308997719,0.01000738,111020.0,111010.0,0.00999999]
[1761309000226,0.00900819,111010.0,111000.0,0.00999999]
[1761309000704,0.00900982,110990.0,110960.0,0.16877225]
[1761309000924,0.00901306,110950.0,110910.0,0.00901631]
[1761309001147,0.00901469,110930.0,110910.0,0.08981901]
[1761309001384,0.34901388,110940.0,110910.0,0.00999999]
[1761309001606,0.103889,111000.0,110940.0,0.00999999]
[1761309001890,0.09488,111000.0,110940.0,0.00999999]
[1761309002120,0.0004,111140.0,111030.0,0.20999999]
[1761309002345,0.02700487,111210.0,111170.0,0.19526466]
[1761309002569,0.04420463,111350.0,111210.0,0.1354515]
[1761309002776,0.03332792,111350.0,111280.0,0.01999998]
[1761309002990,8e-05,111380.0,111300.0,2.0]
[1761309003235,8e-05,111380.0,111360.0,2.0]
[1761309003441,0.00056852,111380.0,111370.0,0.0085]
[1761309003663,0.0012,111400.0,111380.0,0.00999999]
[1761309003882,0.0012,111400.0,111390.0,2.0]
[1761309003883,0.00134644,111400.0,111390.0,2.0]
[1761309004112,0.00134644,111400.0,111390.0,0.17954933]
[1761309004398,0.00448892,111470.0,111440.0,0.00897343]
[1761309004608,4.185e-05,111490.0,111440.0,0.5269203]
[1761309004828,0.0316272,111540.0,111480.0,0.67940437]
[1761309004829,9e-05,111530.0,111480.0,0.67940437]
[1761309005039,0.00999999,111560.0,111510.0,0.34]
[1761309005259,0.18082464,111690.0,111590.0,0.00896137]
[1761309005476,0.00518072,111730.0,111570.0,2.0]
[1761309005477,0.00999999,111670.0,111570.0,2.0]
[1761309005696,0.07167178,111680.0,111570.0,0.00896298]
[1761309005909,0.02703586,111660.0,111600.0,0.00999999]
[1761309006136,0.02691352,111680.0,111650.0,0.00895656]
[1761309006137,0.00048652,111680.0,111650.0,0.00895656]
[1761309006342,0.00524615,111700.0,111680.0,2.0]
[1761309006553,0.00539206,111700.0,111670.0,2.0]
[1761309006768,0.00539206,111700.0,111640.0,0.00999999]
[1761309007047,0.00539206,111700.0,111680.0,1.99991126]
[1761309007250,0.02601667,111780.0,111770.0,2.51999999]
[1761309007486,0.02616223,111780.0,111760.0,0.18768175]
[1761309007711,0.0443957,111770.0,111680.0,2.0]
[1761309007972,0.0023,111770.0,111750.0,2.0]
[1761309008189,0.0023,111770.0,111720.0,2.00895094]
[1761309008414,0.02530763,111760.0,111730.0,2.28039014]
[1761309008616,0.0023,111770.0,111750.0,0.2]
[1761309008823,0.02463717,111740.0,111700.0,0.2]
[1761309009039,0.01124694,111770.0,111660.0,0.00895575]
[1761309009257,0.0023,111770.0,111760.0,0.2]
[1761309009464,0.0023,111770.0,111740.0,0.20894934]
[1761309009678,0.01,111760.0,111750.0,2.0]
[1761309009933,0.0014,111850.0,111750.0,2.0]
[1761309010141,0.00014553,111760.0,111710.0,0.34895175]
[1761309010348,0.00014553,111760.0,111750.0,0.02]
[1761309010554,0.07183721,111840.0,111800.0,0.00894454]
[1761309010805,0.007123,111880.0,111780.0,0.34]
[1761309010806,0.01641717,111900.0,111890.0,0.01]
[1761309011019,0.01641717,111900.0,111820.0,0.5]
[1761309011020,0.00894294,111820.0,111720.0,0.00999999]
[1761309011248,0.00999999,111770.0,111650.0,0.20013346]
[1761309011470,0.00999999,111750.0,111720.0,2.0]
[1761309011692,0.00999999,111880.0,111810.0,0.00894374]
[1761309011918,0.00999999,111730.0,111710.0,0.00999999]
[1761309012157,0.00999999,111740.0,111670.0,0.2]
[1761309012379,0.00014535,111740.0,111680.0,0.23136]
[1761309012599,0.00014535,111740.0,111700.0,0.00895255]
[1761309013044,0.00895335,111690.0,111650.0,0.02101829]
[1761309013265,0.00895335,111690.0,111570.0,0.00896298]
[1761309013266,0.00999999,111710.0,111660.0,0.28864]
[1761309013489,0.00999999,111710.0,111650.0,0.01894533]
[1761309013490,0.00999999,111660.0,111650.0,0.01894533]
[1761309013712,0.01895655,111650.0,111590.0,0.2]
[1761309013928,0.02895333,111690.0,111630.0,0.2]
[1761309014143,0.00999999,111730.0,111640.0,0.2]
[1761309014348,0.02363102,111710.0,111680.0,0.00895415]
[1761309014560,0.00999999,111730.0,111690.0,1.93581454]
[1761309014848,0.00894934,111740.0,111670.0,0.00895495]
[1761309015057,0.00894614,111780.0,111720.0,2.2]
[1761309015271,0.00894774,111760.0,111720.0,0.2]
[1761309015541,0.00894934,111740.0,111720.0,0.2]
[1761309015754,0.00894934,111740.0,111700.0,0.298]
[1761309015755,0.00895094,111720.0,111700.0,0.298]
[1761309015964,0.00895175,111710.0,111680.0,0.298]
[1761309016185,0.00895495,111670.0,111640.0,0.2]
[1761309016400,0.00895816,111630.0,111580.0,0.2268819]
[1761309016609,0.00999999,111600.0,111570.0,0.29936]
[1761309016814,0.00999999,111590.0,111570.0,2.0]
[1761309017022,0.01868595,111620.0,111570.0,0.00048652]
[1761309017234,0.01868515,111630.0,111570.0,0.00048652]
[1761309017445,0.00972699,111590.0,111580.0,2.0]
[1761309017661,0.00972699,111620.0,111610.0,2.0]
[1761309017867,0.00895335,111690.0,111630.0,0.01895815]
[1761309018079,0.00895415,111680.0,111620.0,0.00999999]
[1761309018290,0.00895335,111690.0,111640.0,0.00999999]
[1761309018497,0.0179043,111710.0,111690.0,0.00999999]
[1761309018704,0.07552658,111730.0,111660.0,0.00999999]
[1761309018911,0.00895255,111700.0,111670.0,0.00999999]
[1761309019124,0.0664355,111730.0,111680.0,0.00895415]
[1761309019336,0.00894534,111790.0,111720.0,2.00895094]
[1761309019546,0.00894534,111790.0,111740.0,0.00999999]
[1761309019760,0.00894694,111770.0,111720.0,0.00999999]
[1761309019961,0.00894694,111770.0,111690.0,0.00999999]
[1761309019962,0.0003365,111720.0,111690.0,0.00999999]
[1761309020167,0.0003365,111720.0,111710.0,0.00999999]
[1761309020387,0.0003365,111720.0,111710.0,0.099819]
[1761309020595,0.00894534,111790.0,111720.0,0.01895093]
[1761309020819,0.00894854,111750.0,111710.0,0.00999999]
[1761309021026,0.00895255,111700.0,111640.0,0.5]
[1761309021234,0.00895175,111710.0,111640.0,0.02895734]
[1761309021452,0.00895014,111730.0,111660.0,0.01999998]
[1761309021660,0.01895013,111730.0,111620.0,2.0]
[1761309021878,0.00895255,111700.0,111610.0,2.0]
[1761309022150,0.4152281,111720.0,111640.0,0.00895736]
[1761309022367,0.00894614,111780.0,111710.0,0.00895175]
[1761309022575,0.00894454,111800.0,111730.0,2.0]
[1761309022804,0.08981901,111760.0,111710.0,0.31048]
[1761309023006,0.00894534,111790.0,111710.0,2.00895175]
[1761309023212,0.00894614,111780.0,111730.0,2.0]
[1761309023441,0.00895014,111730.0,111700.0,2.0]
[1761309023645,0.34894774,111760.0,111690.0,2.0]
[1761309023853,0.34894774,111760.0,111710.0,2.0]
[1761309024065,0.34894934,111740.0,111680.0,0.02685714]
[1761309024281,0.32295683,111720.0,111680.0,0.02685714]
[1761309024496,0.4152281,111730.0,111690.0,2.0]
[1761309024497,0.03618228,111730.0,111690.0,2.0]
[1761309024724,0.03618228,111740.0,111690.0,2.0]
[1761309024960,0.04513162,111740.0,111690.0,2.0]
[1761309025178,0.188865,111820.0,111720.0,2.84895094]
[1761309025179,0.08981901,111730.0,111720.0,2.84895094]
[1761309025387,0.00894134,111840.0,111760.0,0.00894774]
[1761309025613,0.00894134,111840.0,111810.0,0.00894374]
[1761309025614,0.02684699,111840.0,111810.0,0.00894374]
[1761309025819,0.00894134,111840.0,111780.0,1.97289664]
[1761309026049,0.00894134,111840.0,111770.0,0.00894694]
[1761309026286,0.18773072,111870.0,111750.0,2.0]
[1761309026500,0.42417104,111820.0,111800.0,0.01814782]
[1761309026716,0.00894534,111790.0,111700.0,0.81268]
[1761309026923,0.76522809,111810.0,111760.0,0.08981901]
[1761309026924,0.03618228,111800.0,111760.0,0.08981901]
[1761309027174,0.08981901,111790.0,111760.0,0.00894774]
[1761309027412,0.0002,111890.0,111830.0,0.00894214]
[1761309027630,0.0002,111890.0,111840.0,1.82234766]
[1761309027631,0.00913734,111890.0,111840.0,1.82234766]
[1761309027855,0.00913734,111890.0,111840.0,2.0]
[1761309028067,0.00068583,111890.0,111850.0,1.995]
[1761309028357,0.00441717,111900.0,111850.0,1.995]
[1761309028570,0.00078081,111920.0,111880.0,2.0]
[1761309028790,0.00078081,111920.0,111890.0,0.00893734]
[1761309029006,0.01,111930.0,111920.0,0.2]
[1761309029211,0.01,111930.0,111910.0,2.0]
[1761309029428,0.01,111930.0,111920.0,2.56560582]
[1761309029651,0.01,111930.0,111920.0,2.0]
[1761309030100,0.10004745,111960.0,111940.0,2.0]
[1761309030313,0.12970571,111970.0,111960.0,2.0]
[1761309030522,0.54493381,111970.0,111950.0,0.2]
[1761309030758,0.00893255,111950.0,111940.0,0.19170221]
[1761309031016,0.00893255,111950.0,111870.0,0.23574319]
[1761309031017,0.00893575,111910.0,111870.0,0.23574319]
[1761309031235,0.34,111890.0,111870.0,0.23574319]
[1761309031442,0.34,111890.0,111870.0,0.21410431]
[1761309031648,0.8215753,111890.0,111870.0,0.18726473]
[1761309031852,0.00893974,111860.0,111810.0,0.70948504]
[1761309032065,0.34,111890.0,111820.0,2.0]
[1761309032296,0.00999999,111940.0,111850.0,2.0]
[1761309032297,0.00893495,111920.0,111850.0,2.0]
[1761309032524,0.00893415,111930.0,111870.0,0.08981901]
[1761309032731,0.00893495,111920.0,111870.0,0.08981901]
[1761309032927,0.00893415,111930.0,111860.0,0.00893974]
[1761309033139,0.00893575,111910.0,111850.0,0.00894054]
[1761309033350,0.00893575,111910.0,111880.0,0.08981901]
[1761309033351,0.18767486,111900.0,111880.0,0.08981901]
[1761309033575,0.17873102,111900.0,111850.0,0.00048583]
[1761309033851,0.34,111890.0,111850.0,0.00048583]
[1761309034064,0.18765168,111910.0,111850.0,0.17926253]
[1761309034285,0.18765168,111910.0,111850.0,0.18820307]
[1761309034500,0.18764667,111940.0,111880.0,0.17876097]
[1761309034727,0.00893255,111950.0,111890.0,2.0]
[1761309034961,0.12970571,111970.0,111930.0,0.17868258]
[1761309035185,0.13863667,111970.0,111920.0,0.17866714]
[1761309035408,0.12970571,111970.0,111930.0,2.18761678]
[1761309035648,0.12970571,111970.0,111950.0,2.17864843]
[1761309035867,0.12970571,111970.0,111960.0,2.49167522]
[1761309036106,0.00054031,111980.0,111970.0,0.2]
[1761309036357,0.00893415,111930.0,111830.0,0.10051901]
[1761309036571,0.00947047,111980.0,111830.0,0.10051901]
[1761309036572,0.18759291,111950.0,111890.0,0.17874451]
[1761309036792,0.18755117,111970.0,111900.0,2.00893655]
[1761309037020,0.18813274,111980.0,111930.0,2.0]
[1761309037236,0.18807666,111980.0,111950.0,2.0]
[1761309037469,0.00893255,111950.0,111920.0,2.0]
[1761309037721,0.60330476,111980.0,111910.0,2.0]
[1761309037722,0.18807666,111980.0,111910.0,2.0]
[1761309037980,0.00054031,111980.0,111940.0,2.0]
[1761309038199,0.00054031,111980.0,111970.0,0.17861927]
[1761309038428,0.00054031,111980.0,111970.0,2.69153927]
[1761309038658,0.00054031,111980.0,111970.0,2.37861927]
[1761309038868,0.05537441,111990.0,111980.0,2.37860332]
[1761309039082,30.2733118,112000.0,111990.0,2.0]
[1761309039300,30.2733118,112000.0,111970.0,2.0]
[1761309039509,0.59383306,111980.0,111940.0,0.19807285]
[1761309039716,0.00893096,111970.0,111940.0,0.19821829]
[1761309039939,30.28224037,112000.0,111940.0,0.19821829]
[1761309039940,29.93879495,112000.0,111950.0,2.31288]
[1761309040182,29.93879495,112000.0,111970.0,2.0]
[1761309040629,0.17859011,111990.0,111970.0,2.0]
[1761309040842,0.187534,111980.0,111970.0,0.24381642]
[1761309041074,30.11736806,112000.0,111980.0,2.0]
[1761309041298,0.17858737,111990.0,111980.0,2.0]
[1761309041561,30.12629969,112000.0,111970.0,0.24381642]
[1761309041793,0.51858805,111990.0,111980.0,0.19880268]
[1761309042010,29.93879495,112000.0,111990.0,2.0]
[1761309042501,29.64293792,112000.0,111990.0,2.17858737]
[1761309042691,29.64293792,112000.0,111990.0,0.49138737]
[1761309042692,26.26086635,112000.0,111990.0,0.49138737]
[1761309042917,23.73171038,112000.0,111990.0,0.61596362]
[1761309043139,22.34471755,112000.0,111990.0,0.69309885]
[1761309043358,18.82701316,112000.0,111990.0,0.68175375]
[1761309043566,18.38469789,112000.0,111990.0,2.03809295]
[1761309043801,18.35791696,112000.0,111980.0,0.4]
[1761309044078,0.17862021,111970.0,111930.0,0.2]
[1761309044310,0.51865118,111950.0,111940.0,0.13038572]
[1761309044517,0.00893734,111890.0,111860.0,0.56630962]
[1761309044733,0.00893335,111940.0,111870.0,2.0]
[1761309044951,0.00893255,111950.0,111930.0,0.24309491]
[1761309045166,0.00893495,111920.0,111880.0,2.0]
[1761309045426,0.00893335,111940.0,111890.0,2.0]
[1761309045633,18.51649115,112000.0,111930.0,2.0]
[1761309045845,0.18753363,111980.0,111940.0,2.0]
[1761309046067,0.00893016,111980.0,111950.0,2.0]
[1761309046310,0.00014531,111980.0,111930.0,2.0]
[1761309046507,0.00014531,111980.0,111970.0,2.37861927]
[1761309046743,0.00014531,111980.0,111970.0,2.71861927]
[1761309046957,18.33791696,112000.0,111990.0,2.37858737]
[1761309046958,17.59791696,112000.0,111990.0,2.37858737]
[1761309047176,17.59791696,112000.0,111980.0,2.02669801]
[1761309047393,17.59791696,112000.0,111970.0,0.00893096]
[1761309047610,17.59791696,112000.0,111940.0,0.00893335]
[1761309047828,0.00893016,111980.0,111940.0,2.00014531]
[1761309048038,17.59791696,112000.0,111950.0,2.0]
[1761309048039,17.7854209,112000.0,111950.0,2.0]
[1761309048255,0.00893016,111980.0,111950.0,2.0]
[1761309048679,0.18755208,111970.0,111940.0,0.00014531]
[1761309048901,0.17865118,111950.0,111940.0,0.00014531]
[1761309049106,0.51865118,111950.0,111940.0,0.00014531]
[1761309049544,0.5276634,111950.0,111940.0,0.00014531]
[1761309049755,0.95061472,111950.0,111940.0,0.00014531]
[1761309049963,0.18770587,111880.0,111830.0,2.0]
[1761309050189,0.18770445,111880.0,111830.0,0.00048583]
[1761309050402,0.00403347,111840.0,111830.0,0.00048583]
[1761309050650,0.17882689,111840.0,111830.0,0.00048583]
[1761309050855,0.5189098,111790.0,111770.0,0.0004]
[1761309051072,0.31264,111780.0,111770.0,0.00014561]
[1761309051288,0.00894454,111800.0,111770.0,0.00014561]
[1761309051509,0.18780396,111820.0,111770.0,0.00014561]
[1761309051718,0.00894214,111830.0,111770.0,0.00014561]
[1761309051934,0.00894294,111820.0,111770.0,0.17907719]
[1761309052150,0.00894294,111820.0,111770.0,0.00014561]
[1761309052352,0.31268,111830.0,111770.0,0.00014561]
[1761309052555,0.00894134,111840.0,111770.0,0.00014561]
[1761309052817,0.18775938,111850.0,111780.0,2.00894614]
[1761309053024,0.00894214,111830.0,111770.0,0.00014561]
[1761309053286,0.31268,111860.0,111800.0,0.18783008]
[1761309053486,0.18771183,111880.0,111810.0,0.00894374]
[1761309053692,0.32271999,111900.0,111840.0,0.00894134]
[1761309053900,0.00893734,111890.0,111830.0,0.17884136]
[1761309054122,0.00893814,111880.0,111840.0,0.03618228]
[1761309054337,0.32169894,111870.0,111800.0,0.03618228]
[1761309054545,0.00893734,111890.0,111800.0,0.54512682]
[1761309054769,0.00942288,111870.0,111830.0,0.03618228]
[1761309054974,0.00893974,111860.0,111810.0,0.22399951]
[1761309055174,0.18820417,111870.0,111830.0,0.03618228]
[1761309055403,0.18820417,111870.0,111790.0,2.17889813]
[1761309055404,0.18773512,111860.0,111790.0,2.17889813]
[1761309055621,0.83157223,111850.0,111800.0,2.0]
[1761309055838,0.18776883,111840.0,111790.0,2.0]
[1761309056054,0.17884946,111830.0,111780.0,2.0]
[1761309056292,0.00894534,111790.0,111740.0,2.0]
[1761309056502,0.00894854,111750.0,111710.0,0.2440464]
[1761309056714,0.32170614,111780.0,111710.0,2.0]
[1761309056715,0.00894694,111770.0,111710.0,2.0]
[1761309056918,0.00894694,111770.0,111740.0,0.00373827]
[1761309057168,0.17895865,111760.0,111700.0,0.01]
[1761309057376,0.17897091,111750.0,111740.0,0.00014561]
[1761309057803,0.179035,111710.0,111700.0,0.01]
[1761309058019,0.18801265,111700.0,111670.0,8e-05]
[1761309058421,0.51906765,111690.0,111670.0,8e-05]
[1761309058655,0.31294492,111710.0,111670.0,8e-05]
[1761309058865,0.50093312,111710.0,111670.0,8e-05]
[1761309059071,0.17908309,111680.0,111670.0,8e-05]
[1761309059295,0.17906706,111690.0,111670.0,8e-05]
[1761309059509,0.00014492,111710.0,111670.0,8e-05]
[1761309059738,0.00014492,111710.0,111680.0,2.00895415]
[1761309059942,0.00014492,111710.0,111700.0,0.03618228]
[1761309060371,0.00014492,111710.0,111700.0,2.67576489]
[1761309060596,0.00894454,111800.0,111740.0,0.17898426]
[1761309060803,0.00048544,111800.0,111760.0,0.03618228]
[1761309061055,0.00033591,111850.0,111810.0,0.04512602]
[1761309061264,0.00048149,111850.0,111830.0,0.03618228]
[1761309061473,0.18776995,111840.0,111800.0,0.03618228]
[1761309061906,0.18777786,111840.0,111770.0,0.17887509]
[1761309062115,0.00894134,111840.0,111790.0,0.03618228]
[1761309062322,0.00894294,111820.0,111720.0,0.2]
[1761309062537,0.00894294,111820.0,111670.0,0.43321769]
[1761309062538,0.1789549,111760.0,111700.0,0.00999999]
[1761309062755,0.50087824,111770.0,111700.0,2.00895255]
[1761309062971,0.46053159,111740.0,111700.0,0.18800034]
[1761309063183,0.50087824,111770.0,111710.0,2.00895175]
[1761309063420,0.18790383,111760.0,111700.0,0.18800034]
[1761309063655,0.17903605,111710.0,111670.0,8e-05]
[1761309063901,0.46053159,111690.0,111670.0,8e-05]
[1761309064147,0.00895656,111650.0,111600.0,0.23039727]
[1761309064371,0.00895656,111650.0,111580.0,0.00999999]
[1761309064372,0.18813831,111620.0,111580.0,2.0]
[1761309064616,0.64867792,111650.0,111570.0,2.0]
[1761309064834,0.00895656,111650.0,111610.0,0.00467443]
[1761309065018,0.64857035,111680.0,111620.0,2.0]
[1761309065258,0.35074241,111700.0,111620.0,2.0]
[1761309065259,0.00895255,111700.0,111630.0,0.00895816]